fUSD/lending_fUSD_20250716
["ID","MTS","AMOUNT","RATE_DAILY","PERIOD"]
[372602307,1752701442540,-2384.45,0.00019671,2]
[372602309,1752701442549,-2646.02,0.00019671,2]
[372602310,1752701442559,-2581.69,0.00019671,2]
[372602311,1752701442569,-460.0,0.00019671,2]
[372602312,1752701442579,-417.29358402,0.00019671,2]
[372602313,1752701442589,-651.85,0.00019671,2]
[372602314,1752701442599,-494.19125449,0.00019671,2]
[372602315,1752701442609,-515.91048157,0.00019671,2]
[372602316,1752701442618,-460.0,0.00019671,2]
[372602317,1752701442627,-460.0,0.00019671,2]
[372602318,1752701442637,-422.34,0.00019671,2]
[372602319,1752701442647,-4301.81,0.00019671,2]
[372602320,1752701442656,-460.0,0.00019671,2]
[372602322,1752701442665,-460.0,0.00019671,2]
[372602324,1752701442674,-500.0,0.00019671,2]
[372602326,1752701442684,-460.0,0.00019671,2]
[372602328,1752701442693,-853.89,0.00019671,2]
[372602330,1752701442702,-1231.35,0.00019671,2]
[372602331,1752701442713,-1820.7,0.00019671,2]
[372602334,1752701442722,-460.0,0.00019671,2]
[372602335,1752701442731,-4637.92,0.00019671,2]
[372602337,1752701442740,-461.92867663,0.00019671,2]
[372602339,1752701442750,-460.0,0.00019671,2]
[372602342,1752701442759,-460.0,0.00019671,2]
[372602343,1752701442769,-460.0,0.00019671,2]
[372602345,1752701442779,-460.0,0.00019671,2]
[372602348,1752701442790,-460.0,0.00019671,2]
[372602349,1752701442802,-866.07,0.00019671,2]
[372602351,1752701442812,-923.21,0.00019671,2]
[372602353,1752701442821,-460.0,0.00019671,2]
[372602355,1752701442831,-460.0,0.00019671,2]
[372602358,1752701442840,-10369.94,0.00019671,2]
[372602360,1752701442849,-4314.25,0.00019671,2]
[372602362,1752701442859,-460.0,0.00019671,2]
[372602365,1752701442869,-1730.34,0.00019671,2]
[372602367,1752701442882,-460.0,0.00019671,2]
[372602369,1752701442892,-460.0,0.00019671,2]
[372602372,1752701442902,-254.0,0.00019671,2]
[372602375,1752701442912,-500.0,0.00019671,2]
[372602378,1752701442921,-1254.62,0.00019671,2]
[372602381,1752701442930,-467.49,0.00019671,2]
[372602384,1752701442939,-1528.27,0.00019671,2]
[372602387,1752701442949,-158.833951,0.00019671,2]
[372602389,1752701442959,-2175.977186,0.00019671,2]
[372602391,1752701442969,-156.019409,0.00019671,2]
[372602394,1752701442978,-1839.67,0.00019671,2]
[372602397,1752701442988,-460.0,0.00019671,2]
[372602399,1752701442998,-2282.70317,0.00019671,2]
[372602401,1752701443007,-460.0,0.00019671,2]
[372602403,1752701443016,-460.0,0.00019671,2]
[372602405,1752701443026,-635.66,0.00019671,2]
[372602407,1752701443036,-460.0,0.00019671,2]
[372602409,1752701443046,-2125.23,0.00019671,2]
[372602411,1752701443055,-460.0,0.00019671,2]
[372602414,1752701443066,-7381.96,0.00019671,2]
[372602417,1752701443076,-460.0,0.00019671,2]
[372602421,1752701443088,-3223.85,0.00019671,2]
[372602425,1752701443098,-460.0,0.00019671,2]
[372602428,1752701443108,-2308.06714,0.00019671,2]
[372602431,1752701443118,-1696.14,0.00019671,2]
[372602434,1752701443127,-9434.42,0.00019671,2]
[372602437,1752701443137,-1143.16,0.00019671,2]
[372602440,1752701443146,-665.66,0.00019671,2]
[372602443,1752701443156,-550.09,0.00019671,2]
[372602446,1752701443166,-460.0,0.00019671,2]
[372602449,1752701443175,-4032.62,0.00019671,2]
[372602452,1752701443185,-1181.48,0.00019671,2]
[372602455,1752701443195,-16146.04,0.00019671,2]
[372602458,1752701443204,-460.0,0.00019671,2]
[372602461,1752701443214,-540.78,0.00019671,2]
[372602464,1752701443223,-460.0,0.00019671,2]
[372602466,1752701443233,-571.13,0.00019671,2]
[372602469,1752701443242,-460.0,0.00019671,2]
[372602472,1752701443251,-460.0,0.00019671,2]
[372602475,1752701443261,-2354.03,0.00019671,2]
[372602478,1752701443271,-460.0,0.00019671,2]
[372602481,1752701443280,-1733.27,0.00019671,2]
[372602483,1752701443290,-460.0,0.00019671,2]
[372602485,1752701443299,-460.0,0.00019671,2]
[372602487,1752701443308,-627.26,0.00019671,2]
[372602489,1752701443318,-1739.94,0.00019671,2]
[372602491,1752701443329,-3666.31,0.00019671,2]
[372602493,1752701443339,-460.0,0.00019671,2]
[372602495,1752701443348,-648.68,0.00019671,2]
[372602497,1752701443358,-492.12,0.00019671,2]
[372602499,1752701443368,-3047.62,0.00019671,2]
[372602501,1752701443377,-501.61,0.00019671,2]
[372602503,1752701443387,-460.0,0.00019671,2]
[372602505,1752701443396,-3387.43,0.00019671,2]
[372602507,1752701443405,-460.0,0.00019671,2]
[372602509,1752701443415,-3873.59,0.00019671,2]
[372602511,1752701443424,-460.0,0.00019671,2]
[372602513,1752701443433,-1795.77,0.00019671,2]
[372602515,1752701443443,-762.45,0.00019671,2]
[372602517,1752701443452,-151.0,0.00019671,2]
[372602519,1752701443461,-151.0,0.00019671,2]
[372602521,1752701443471,-151.0,0.00019671,2]
[372602523,1752701443480,-500.0,0.00019671,2]
[372602525,1752701443490,-1315.48,0.00019671,2]
[372602527,1752701443499,-841.0,0.00019671,2]
[372602529,1752701443509,-460.0,0.00019671,2]
[372602531,1752701443518,-2062.09,0.00019671,2]
[372602533,1752701443528,-7600.02,0.00019671,2]
[372602535,1752701443538,-6966.21,0.00019671,2]
[372602537,1752701443547,-151.0,0.00019671,2]
[372602539,1752701443556,-981.25,0.00019671,2]
[372602542,1752701443566,-151.0,0.00019671,2]
[372602544,1752701443575,-1454.86,0.00019671,2]
[372602547,1752701443585,-5263.26,0.00019671,2]
[372602550,1752701443594,-460.0,0.00019671,2]
[372602552,1752701443604,-753.42,0.00019671,2]
[372602554,1752701443613,-607.19,0.00019671,2]
[372602556,1752701443623,-2018.79,0.00019671,2]
[372602558,1752701443632,-460.0,0.00019671,2]
[372602560,1752701443642,-828.6,0.00019671,2]
[372602562,1752701443652,-460.0,0.00019671,2]
[372602564,1752701443662,-460.0,0.00019671,2]
[372602566,1752701443672,-460.0,0.00019671,2]
[372602568,1752701443681,-460.0,0.00019671,2]
[372602570,1752701443691,-460.0,0.00019671,2]
[372602572,1752701443700,-1909.85,0.00019671,2]
[372602574,1752701443710,-460.0,0.00019671,2]
[372602576,1752701443719,-460.0,0.00019671,2]
[372602578,1752701443728,-460.0,0.00019671,2]
[372602580,1752701443738,-2136.02,0.00019671,2]
[372602582,1752701443747,-10275.29,0.00019671,2]
[372602584,1752701443757,-7368.69,0.00019671,2]
[372602586,1752701443766,-3924.62,0.00019671,2]
[372602588,1752701443776,-460.0,0.00019671,2]
[372602590,1752701443785,-583.93,0.00019671,2]
[372602592,1752701443796,-829.91,0.00019671,2]
[372602594,1752701443806,-460.0,0.00019671,2]
[372602596,1752701443817,-2272.03,0.00019671,2]
[372602598,1752701443827,-1883.16,0.00019671,2]
[372602600,1752701443836,-640.53,0.00019671,2]
[372602602,1752701443847,-285.574506,0.00019671,2]
[372602604,1752701443856,-285.574506,0.00019671,2]
[372602606,1752701443866,-684.58,0.00019671,2]
[372602607,1752701443876,-2616.93,0.00019671,2]
[372602609,1752701443886,-396.64138112,0.00019671,2]
[372602612,1752701443896,-460.0,0.00019671,2]
[372602613,1752701443905,-460.0,0.00019671,2]
[372602615,1752701443915,-527.71,0.00019671,2]
[372602618,1752701443925,-2482.2,0.00019671,2]
[372602620,1752701443934,-460.0,0.00019671,2]
[372602622,1752701443943,-285.574506,0.00019671,2]
[372602623,1752701443955,-285.574506,0.00019671,2]
[372602625,1752701443964,-152.70195244,0.00019671,2]
[372602627,1752701443974,-460.0,0.00019671,2]
[372602629,1752701443983,-460.0,0.00019671,2]
[372602631,1752701443993,-2428.54,0.00019671,2]
[372602633,1752701444003,-1625.58,0.00019671,2]
[372602635,1752701444013,-460.0,0.00019671,2]
[372602637,1752701444024,-1316.17,0.00019671,2]
[372602640,1752701444034,-460.0,0.00019671,2]
[372602642,1752701444043,-375.61372721,0.00019671,2]
[372602643,1752701444053,-519.15,0.00019671,2]
[372602646,1752701444063,-2095.16,0.00019671,2]
[372602647,1752701444072,-151.0,0.00019671,2]
[372602649,1752701444081,-2694.74,0.00019671,2]
[372602651,1752701444090,-508.68797406,0.00019671,2]
[372602653,1752701444099,-460.0,0.00019671,2]
[372602655,1752701444110,-460.0,0.00019671,2]
[372602657,1752701444119,-460.0,0.00019671,2]
[372602659,1752701444129,-517.7,0.00019671,2]
[372602661,1752701444138,-8724.55,0.00019671,2]
[372602663,1752701444147,-425.31878496,0.00019671,2]
[372602665,1752701444156,-1137.82,0.00019671,2]
[372602667,1752701444166,-682.54,0.00019671,2]
[372602669,1752701444175,-460.0,0.00019671,2]
[372602671,1752701444184,-1463.71,0.00019671,2]
[372602673,1752701444194,-460.0,0.00019671,2]
[372602675,1752701444203,-1067.98,0.00019671,2]
[372602677,1752701444212,-2609.1,0.00019671,2]
[372602679,1752701444222,-4730.05,0.00019671,2]
[372602681,1752701444231,-3513.45,0.00019671,2]
[372602683,1752701444240,-1070.32,0.00019671,2]
[372602685,1752701444250,-2327.49,0.00019671,2]
[372602687,1752701444259,-7090.22,0.00019671,2]
[372602689,1752701444269,-460.0,0.00019671,2]
[372602691,1752701444280,-460.0,0.00019671,2]
[372602693,1752701444289,-460.0,0.00019671,2]
[372602695,1752701444298,-10449.4,0.00019671,2]
[372602697,1752701444307,-460.0,0.00019671,2]
[372602699,1752701444317,-534.9524165,0.00019671,2]
[372602701,1752701444327,-668.64,0.00019671,2]
[372602703,1752701444336,-869.37,0.00019671,2]
[372602705,1752701444346,-460.0,0.00019671,2]
[372602707,1752701444355,-460.0,0.00019671,2]
[372602709,1752701444365,-1566.93,0.00019671,2]
[372602711,1752701444374,-460.0,0.00019671,2]
[372602713,1752701444383,-1597.81,0.00019671,2]
[372602715,1752701444392,-947.82,0.00019671,2]
[372602717,1752701444402,-460.0,0.00019671,2]
[372602719,1752701444411,-460.0,0.00019671,2]
[372602721,1752701444421,-460.0,0.00019671,2]
[372602723,1752701444430,-1854.38,0.00019671,2]
[372602725,1752701444440,-3056.43,0.00019671,2]
[372602727,1752701444449,-460.0,0.00019671,2]
[372602729,1752701444459,-2410.39,0.00019671,2]
[372602731,1752701444469,-2322.04,0.00019671,2]
[372602733,1752701444478,-460.0,0.00019671,2]
[372602735,1752701444487,-2125.35,0.00019671,2]
[372602737,1752701444496,-502.47966585,0.00019671,2]
[372602739,1752701444506,-2320.48,0.00019671,2]
[372602741,1752701444516,-460.0,0.00019671,2]
[372602743,1752701444526,-460.0,0.00019671,2]
[372602745,1752701444536,-460.0,0.00019671,2]
[372602747,1752701444546,-1580.94,0.00019671,2]
[372602749,1752701444555,-1361.79,0.00019671,2]
[372602751,1752701444564,-460.99355165,0.00019671,2]
[372602753,1752701444575,-782.93,0.00019671,2]
[372602755,1752701444584,-460.0,0.00019671,2]
[372602757,1752701444594,-2618.99,0.00019671,2]
[372602759,1752701444604,-460.0,0.00019671,2]
[372602761,1752701444613,-460.0,0.00019671,2]
[372602763,1752701444623,-460.0,0.00019671,2]
[372602765,1752701444632,-470.694168,0.00019671,2]
[372602767,1752701444642,-200.0,0.00019671,2]
[372602769,1752701444651,-200.0,0.00019671,2]
[372602771,1752701444661,-571.73,0.00019671,2]
[372602773,1752701444670,-200.0,0.00019671,2]
[372602775,1752701444680,-406.70337596,0.00019671,2]
[372602777,1752701444690,-460.0,0.00019671,2]
[372602779,1752701444699,-200.0,0.00019671,2]
[372602781,1752701444708,-624.96,0.00019671,2]
[372602783,1752701444719,-554.350001,0.00019671,2]
[372602785,1752701444729,-200.0,0.00019671,2]
[372602787,1752701444738,-200.0,0.00019671,2]
[372602789,1752701444747,-2664.01,0.00019671,2]
[372602791,1752701444757,-637.52,0.00019671,2]
[372602793,1752701444766,-151.0,0.00019671,2]
[372602795,1752701444778,-200.0,0.00019671,2]
[372602797,1752701444788,-200.0,0.00019671,2]
[372602799,1752701444799,-200.0,0.00019671,2]
[372602801,1752701444811,-200.0,0.00019671,2]
[372602803,1752701444822,-959.98,0.00019671,2]
[372602805,1752701444832,-200.0,0.00019671,2]
[372602807,1752701444843,-200.0,0.00019671,2]
[372602809,1752701444853,-460.0,0.00019671,2]
[372602811,1752701444862,-460.0,0.00019671,2]
[372602839,1752701445128,-1103.41,0.00019671,2]
[372602841,1752701445139,-200.0,0.00019671,2]
[372602843,1752701445149,-200.0,0.00019671,2]
[372602845,1752701445159,-200.0,0.00019671,2]
[372602847,1752701445169,-1737.5,0.00019671,2]
[372602849,1752701445179,-2429.89,0.00019671,2]
[372602851,1752701445188,-460.0,0.00019671,2]
[372602853,1752701445198,-200.0,0.00019671,2]
[372602855,1752701445208,-200.0,0.00019671,2]
[372602857,1752701445218,-200.0,0.00019671,2]
[372602859,1752701445227,-200.0,0.00019671,2]
[372602861,1752701445237,-200.0,0.00019671,2]
[372602863,1752701445246,-243.69856,0.00019671,2]
[372602865,1752701445256,-151.0,0.00019671,2]
[372602867,1752701445265,-846.19,0.00019671,2]
[372602869,1752701445276,-2516.64,0.00019671,2]
[372602871,1752701445287,-47591.38,0.00019671,2]
[372602873,1752701445296,-500.0,0.00019671,2]
[372602875,1752701445305,-460.0,0.00019671,2]
[372602877,1752701445315,-460.0,0.00019671,2]
[372602879,1752701445324,-460.0,0.00019671,2]
[372602881,1752701445334,-460.0,0.00019671,2]
[372602883,1752701445344,-791.81,0.00019671,2]
[372602885,1752701445354,-631.97,0.00019671,2]
[372602887,1752701445364,-460.0,0.00019671,2]
[372602889,1752701445373,-460.0,0.00019671,2]
[372602891,1752701445382,-1402.85,0.00019671,2]
[372602893,1752701445392,-1034.84,0.00019671,2]
[372602895,1752701445402,-151.0,0.00019671,2]
[372602897,1752701445411,-460.0,0.00019671,2]
[372602899,1752701445421,-1146.7,0.00019671,2]
[372602901,1752701445431,-6462.52,0.00019671,2]
[372602903,1752701445440,-460.0,0.00019671,2]
[372602905,1752701445449,-510.64,0.00019671,2]
[372602907,1752701445458,-1356.52,0.00019671,2]
[372602909,1752701445467,-151.0,0.00019671,2]
[372602911,1752701445477,-1636.21,0.00019671,2]
[372602913,1752701445486,-151.0,0.00019671,2]
[372602915,1752701445495,-151.0,0.00019671,2]
[372602917,1752701445505,-460.0,0.00019671,2]
[372602919,1752701445514,-4707.54,0.00019671,2]
[372602921,1752701445525,-812.28,0.00019671,2]
[372602923,1752701445535,-460.0,0.00019671,2]
[372602925,1752701445544,-460.0,0.00019671,2]
[372602927,1752701445553,-1536.58,0.00019671,2]
[372602929,1752701445563,-846.04,0.00019671,2]
[372602931,1752701445572,-686.06,0.00019671,2]
[372602933,1752701445582,-266.95644326,0.00019671,2]
[372602935,1752701445592,-460.0,0.00019671,2]
[372602937,1752701445601,-4613.32,0.00019671,2]
[372602939,1752701445611,-2050.28,0.00019671,2]
[372602941,1752701445620,-460.0,0.00019671,2]
[372602943,1752701445631,-460.0,0.00019671,2]
[372602945,1752701445640,-460.0,0.00019671,2]
[372602947,1752701445650,-460.0,0.00019671,2]
[372602949,1752701445660,-6981.27,0.00019671,2]
[372602951,1752701445669,-488.74,0.00019671,2]
[372602953,1752701445679,-792.08,0.00019671,2]
[372602955,1752701445688,-460.0,0.00019671,2]
[372602957,1752701445698,-460.0,0.00019671,2]
[372602958,1752701445708,-1562.74,0.00019671,2]
[372602959,1752701445718,-2175.9,0.00019671,2]
[372602960,1752701445728,-460.0,0.00019671,2]
[372602961,1752701445737,-460.0,0.00019671,2]
[372602962,1752701445747,-460.0,0.00019671,2]
[372602963,1752701445756,-909.26,0.00019671,2]
[372602964,1752701445766,-151.224914,0.00019671,2]
[372602965,1752701445776,-460.0,0.00019671,2]
[372602966,1752701445786,-1593.12,0.00019671,2]
[372602967,1752701445800,-460.0,0.00019671,2]
[372602970,1752701445810,-812.41,0.00019671,2]
[372602973,1752701445820,-460.0,0.00019671,2]
[372602976,1752701445829,-2316.61,0.00019671,2]
[372602979,1752701445839,-460.0,0.00019671,2]
[372602981,1752701445848,-460.0,0.00019671,2]
[372602983,1752701445858,-7499.75,0.00019671,2]
[372602987,1752701445867,-1101.97,0.00019671,2]
[372602990,1752701445880,-1237.08,0.00019671,2]
[372602992,1752701445893,-460.0,0.00019671,2]
[372602994,1752701445902,-460.0,0.00019671,2]
[372602996,1752701445917,-735.18,0.00019671,2]
[372602998,1752701445927,-460.0,0.00019671,2]
[372603000,1752701445937,-460.0,0.00019671,2]
[372603002,1752701445947,-460.0,0.00019671,2]
[372603004,1752701445956,-460.0,0.00019671,2]
[372603006,1752701445966,-531.34,0.00019671,2]
[372603008,1752701445977,-571.784908,0.00019671,2]
[372603010,1752701445987,-460.0,0.00019671,2]
[372603012,1752701445997,-571.784908,0.00019671,2]
[372603014,1752701446007,-585.73,0.00019671,2]
[372603016,1752701446017,-728.02,0.00019671,2]
[372603019,1752701446030,-1356.94,0.00019671,2]
[372603021,1752701446040,-2357.38,0.00019671,2]
[372603023,1752701446050,-460.0,0.00019671,2]
[372603025,1752701446060,-1759.05,0.00019671,2]
[372603027,1752701446070,-460.0,0.00019671,2]
[372603028,1752701446080,-460.0,0.00019671,2]
[372603030,1752701446090,-460.0,0.00019671,2]
[372603032,1752701446100,-460.0,0.00019671,2]
[372603034,1752701446109,-571.784908,0.00019671,2]
[372603036,1752701446119,-571.784908,0.00019671,2]
[372603038,1752701446129,-3086.97,0.00019671,2]
[372603040,1752701446139,-1000.0,0.00019671,2]
[372603042,1752701446148,-2186.58,0.00019671,2]
[372603044,1752701446158,-888.9,0.00019671,2]
[372603046,1752701446168,-2401.27,0.00019671,2]
[372603048,1752701446178,-460.0,0.00019671,2]
[372603050,1752701446188,-1049.9,0.00019671,2]
[372603052,1752701446197,-703.45,0.00019671,2]
[372603054,1752701446207,-463.64820422,0.00019671,2]
[372603056,1752701446218,-1236.61,0.00019671,2]
[372603058,1752701446228,-500.37,0.00019671,2]
[372603059,1752701446238,-1229.87,0.00019671,2]
[372603062,1752701446248,-2192.0,0.00019671,2]
[372603064,1752701446258,-460.0,0.00019671,2]
[372603066,1752701446268,-5177.79,0.00019671,2]
[372603068,1752701446279,-663.47,0.00019671,2]
[372603069,1752701446289,-460.0,0.00019671,2]
[372603072,1752701446299,-380.0,0.00019671,2]
[372603074,1752701446308,-1239.78,0.00019671,2]
[372603076,1752701446318,-1529.08,0.00019671,2]
[372603078,1752701446328,-4181.13,0.00019671,2]
[372603080,1752701446337,-752.31,0.00019671,2]
[372603082,1752701446347,-2479.89,0.00019671,2]
[372603084,1752701446357,-627.07,0.00019671,2]
[372603086,1752701446368,-460.0,0.00019671,2]
[372603088,1752701446378,-1062.15,0.00019671,2]
[372603090,1752701446388,-460.0,0.00019671,2]
[372603092,1752701446397,-460.0,0.00019671,2]
[372603094,1752701446407,-743.42,0.00019671,2]
[372603096,1752701446417,-460.0,0.00019671,2]
[372603098,1752701446426,-460.0,0.00019671,2]
[372603099,1752701446436,-1398.17,0.00019671,2]
[372603101,1752701446445,-1419.27,0.00019671,2]
[372603104,1752701446455,-467.42872905,0.00019671,2]
[372603105,1752701446465,-5265.66,0.00019671,2]
[372603107,1752701446474,-460.0,0.00019671,2]
[372603110,1752701446484,-1298.49,0.00019671,2]
[372603112,1752701446495,-2263.74,0.00019671,2]
[372603114,1752701446504,-460.0,0.00019671,2]
[372603116,1752701446514,-460.0,0.00019671,2]
[372603117,1752701446525,-3549.02,0.00019671,2]
[372603119,1752701446535,-460.0,0.00019671,2]
[372603121,1752701446545,-755.63,0.00019671,2]
[372603124,1752701446555,-460.0,0.00019671,2]
[372603125,1752701446564,-580.94,0.00019671,2]
[372603127,1752701446574,-1393.83,0.00019671,2]
[372603129,1752701446583,-2268.26,0.00019671,2]
[372603131,1752701446592,-3856.09,0.00019671,2]
[372603133,1752701446602,-460.0,0.00019671,2]
[372603135,1752701446611,-1660.71,0.00019671,2]
[372603137,1752701446621,-2769.9,0.00019671,2]
[372603139,1752701446630,-460.0,0.00019671,2]
[372603141,1752701446639,-701.5,0.00019671,2]
[372603143,1752701446649,-2153.1,0.00019671,2]
[372603145,1752701446659,-461.47181183,0.00019671,2]
[372603147,1752701446669,-646.92,0.00019671,2]
[372603149,1752701446679,-460.0,0.00019671,2]
[372603151,1752701446688,-822.29,0.00019671,2]
[372603153,1752701446698,-460.0,0.00019671,2]
[372603155,1752701446708,-2113.36,0.00019671,2]
[372603157,1752701446718,-2628.63,0.00019671,2]
[372603159,1752701446728,-460.0,0.00019671,2]
[372603161,1752701446737,-4035.45,0.00019671,2]
[372603163,1752701446747,-511.53,0.00019671,2]
[372603165,1752701446757,-985.54,0.00019671,2]
[372603167,1752701446767,-460.0,0.00019671,2]
[372603169,1752701446777,-1562.36,0.00019671,2]
[372603171,1752701446786,-460.0,0.00019671,2]
[372603173,1752701446796,-460.0,0.00019671,2]
[372603175,1752701446805,-460.0,0.00019671,2]
[372603177,1752701446819,-373.495347,0.00019671,2]
[372603179,1752701446828,-373.495347,0.00019671,2]
[372603181,1752701446838,-528.43,0.00019671,2]
[372603183,1752701446847,-460.0,0.00019671,2]
[372603185,1752701446858,-460.0,0.00019671,2]
[372603187,1752701446868,-460.58212596,0.00019671,2]
[372603189,1752701446877,-461.83715601,0.00019671,2]
[372603191,1752701446888,-156.89157896,0.00019672,2]
[372603193,1752701446899,-151.0,0.00019672,2]
[372603195,1752701446909,-151.0,0.00019672,2]
[372603197,1752701446919,-151.0,0.00019672,2]
[372603199,1752701446928,-151.0,0.00019672,2]
[372603201,1752701446938,-151.0,0.00019672,2]
[372603203,1752701446947,-10000.0,0.00019672,2]
[372603205,1752701446957,-500.0,0.00019673,2]
[372603207,1752701446967,-500.0,0.00019673,2]
[372603209,1752701446976,-500.0,0.00019673,2]
[372603211,1752701446987,-500.0,0.00019673,2]
[372603213,1752701446996,-525.35705644,0.00019673,2]
[372603215,1752701447009,-500.0,0.00019673,2]
[372603217,1752701447019,-500.0,0.00019673,2]
[372603219,1752701447029,-500.0,0.00019673,2]
[372603221,1752701447039,-500.0,0.00019673,2]
[372603223,1752701447048,-277.69805332,0.00019673,2]
[372603225,1752701447058,-500.0,0.00019673,2]
[372603227,1752701447068,-500.0,0.00019673,2]
[372603229,1752701447078,-500.0,0.00019673,2]
[372603231,1752701447087,-500.0,0.00019673,2]
[372603233,1752701447097,-500.0,0.00019673,2]
[372603235,1752701447107,-500.0,0.00019673,2]
[372603237,1752701447117,-500.0,0.00019673,2]
[372603239,1752701447127,-502.04250254,0.00019673,2]
[372603241,1752701447138,-501.10542618,0.00019673,2]
[372603243,1752701447148,-500.0,0.00019673,2]
[372603244,1752701447157,-159.34671063,0.00019673,2]
[372603246,1752701447166,-500.0,0.00019673,2]
[372603248,1752701447176,-486.73665826,0.00019673,2]
[372603250,1752701447185,-500.0,0.00019673,2]
[372603252,1752701447194,-210.53900669,0.00019673,2]
[372603254,1752701447204,-581.42247682,0.00019673,2]
[372603256,1752701447214,-151.0,0.00019673,2]
[372603258,1752701447223,-151.0,0.00019673,2]
[372603260,1752701447233,-151.0,0.00019673,2]
[372603262,1752701447243,-285.574506,0.00019673,2]
[372603264,1752701447253,-285.574506,0.00019673,2]
[372603266,1752701447262,-571.784908,0.00019673,2]
[372603268,1752701447272,-571.784908,0.00019673,2]
[372603270,1752701447283,-373.495347,0.00019673,2]
[372603272,1752701447292,-151.0,0.00019675,2]
[372603274,1752701447302,-185.955209,0.00019675,2]
[372603276,1752701447311,-151.0,0.00019675,2]
[372603278,1752701447321,-151.0,0.00019675,2]
[372603280,1752701447330,-151.0,0.00019675,2]
[372603282,1752701447340,-214.561127,0.00019675,2]
[372603284,1752701447349,-151.0,0.00019675,2]
[372603286,1752701447359,-151.0,0.00019675,2]
[372603288,1752701447369,-151.0,0.00019675,2]
[372603290,1752701447378,-151.0,0.00019675,2]
[372603292,1752701447387,-151.0,0.00019675,2]
[372603294,1752701447397,-151.0,0.00019675,2]
[372603296,1752701447407,-956.55045,0.00019699,2]
[372603298,1752701447417,-956.55045,0.00019699,2]
[372603300,1752701447427,-3800.0,0.000197,7]
[372603302,1752701447436,-8589.63,0.000197,2]
[372603304,1752701447446,-210.72748344,0.000197,7]
[372603306,1752701447456,-1032.91,0.00019708,2]
[372603308,1752701447466,-532.0221526,0.00019708,2]
[372603310,1752701447475,-839.61,0.00019708,2]
[372603312,1752701447485,-460.0,0.00019708,2]
[372603314,1752701447495,-460.0,0.00019708,2]
[372603328,1752701447619,-460.0,0.00019708,2]
[372603330,1752701447628,-460.0,0.00019708,2]
[372603332,1752701447638,-211.65482065,0.00019708,2]
[372603334,1752701447647,-460.0,0.00019708,2]
[372603336,1752701447657,-7393.8708363,0.00019714,2]
[372603338,1752701447666,-3075.0,0.00019717,2]
[372603340,1752701447675,-287.66582157,0.00019723,2]
[372603342,1752701447684,-459.35,0.00019725,2]
[372603344,1752701447694,-168.0,0.00019728,2]
[372603346,1752701447703,-200.0,0.00019741,2]
[372603348,1752701447712,-500.0,0.00019753,2]
[372603350,1752701447722,-151.0,0.00019754,2]
[372603352,1752701447731,-151.0,0.00019754,2]
[372603354,1752701447741,-151.0,0.00019754,2]
[372603356,1752701447750,-151.0,0.00019754,2]
[372603358,1752701447759,-151.0,0.00019754,2]
[372603360,1752701447769,-151.0,0.00019754,2]
[372603362,1752701447779,-151.0,0.00019754,2]